[Event "23rd ETCC Women 2021"]
[Site "Catez"]
[Date "2021.11.16"]
[Round "5.22"]
[White "Hagarova, Zuzana"]
[Black "Gara, Ticia"]
[Result "1-0"]
[ECO "C28"]
[WhiteElo "2292"]
[BlackElo "2331"]
[Annotator "ChessBase"]
[PlyCount "145"]
[EventDate "2021.11.08"]
[EventType "team-tourn"]
[EventCountry "SLO"]
[SourceTitle "playchess.com"]
[Source "ChessBase"]
[SourceQuality "1"]
[WhiteTeam "Slovakia"]
[BlackTeam "Hungary"]
[WhiteTeamCountry "SVK"]
[BlackTeamCountry "HUN"]
[TimeControl "40/5400+30:1800+30"]

1. e4 {[%emt 0:00:06]} e5 {[%emt 0:00:05]} 2. Nc3 {[%emt 0:03:09]} Nc6 {
[%emt 0:00:19]} 3. Bc4 {[%emt 0:00:54]} Nf6 {[%emt 0:00:39]} 4. d3 {[%emt 0:00:
49]} Be7 {[%emt 0:02:28]} 5. f4 {[%emt 0:01:44]} exf4 {[%emt 0:11:43]} 6. Bxf4
{[%emt 0:06:08]} d6 {[%emt 0:00:13]} 7. Nf3 {[%emt 0:04:04]} Na5 {[%emt 0:03:
28]} 8. Qe2 {[%emt 0:13:17]} O-O {[%emt 0:06:30]} 9. O-O-O {[%emt 0:04:31]} a6
{[%emt 0:16:32]} 10. a3 {[%emt 0:19:00]} Nxc4 {[%emt 0:02:23]} 11. dxc4 {
[%emt 0:00:05]} Qe8 {[%emt 0:01:04]} 12. h3 {[%emt 0:03:18]} Bd7 {[%emt 0:13:
22]} 13. Nd4 {[%emt 0:03:06]} b5 {[%emt 0:15:02]} 14. Rd3 {[%emt 0:16:20]} bxc4
{[%emt 0:05:53]} 15. Rg3 {[%emt 0:02:30]} Kh8 {[%emt 0:00:03]} 16. Rf1 {
[%emt 0:05:09]} c5 {[%emt 0:04:15]} 17. Nf5 {[%emt 0:02:21]} Bxf5 {[%emt 0:00:
04]} 18. exf5 {[%emt 0:00:20]} Qd7 {[%emt 0:00:48]} 19. Re3 {[%emt 0:07:06]}
Rfe8 {[%emt 0:00:37]} 20. g4 {[%emt 0:00:22]} d5 {[%emt 0:02:55]} 21. g5 {
[%emt 0:01:46]} d4 {[%emt 0:00:49]} 22. gxf6 {[%emt 0:00:54]} Bxf6 {[%emt 0:00:
16]} 23. Rxe8+ {[%emt 0:03:15]} Rxe8 {[%emt 0:00:03]} 24. Qd1 {[%emt 0:00:22]}
Qxf5 {[%emt 0:01:11]} 25. Ne2 {[%emt 0:00:22]} d3 {[%emt 0:04:20]} 26. Ng3 {
[%emt 0:00:27]} Qd5 {[%emt 0:01:11]} 27. c3 {[%emt 0:00:52]} g6 {[%emt 0:01:37]
} 28. Re1 {[%emt 0:01:01]} Re6 {[%emt 0:02:53]} 29. Rxe6 {[%emt 0:00:37]} Qxe6
{[%emt 0:01:24]} 30. Qf1 {[%emt 0:00:18]} h5 {[%emt 0:00:45]} 31. Bd2 {[%emt 0:
00:24]} Bg7 {[%emt 0:01:26]} 32. Qg2 {[%emt 0:01:10]} f5 {[%emt 0:00:40]} 33.
Qf3 {[%emt 0:00:37]} h4 {[%emt 0:01:22]} 34. Nh1 {[%emt 0:00:30]} Bf6 {[%emt 0:
00:33]} 35. Nf2 {[%emt 0:00:23]} Kg7 {[%emt 0:00:28]} 36. Qb7+ {[%emt 0:00:15]}
Kg8 {[%emt 0:00:32]} 37. Qb8+ {[%emt 0:00:34]} Kf7 {[%emt 0:00:21]} 38. Nd1 {
[%emt 0:00:53]} Qc6 {[%emt 0:00:43]} 39. Qf4 {[%emt 0:00:25]} Qe4 {[%emt 0:00:
31]} 40. Qc7+ {[%emt 0:00:21]} Qe7 {[%emt 0:00:30]} 41. Qc6 {[%emt 0:30:31]} g5
{[%emt 0:30:29]} 42. Qxa6 {[%emt 0:00:00]} Qe4 {[%emt 0:00:00]} 43. Qa7+ {
[%emt 0:00:00]} Kg6 {[%emt 0:00:00]} 44. Qd7 {[%emt 0:00:00]} g4 {[%emt 0:00:
00]} 45. hxg4 {[%emt 0:00:00]} fxg4 {[%emt 0:00:00]} 46. Nf2 {[%emt 0:00:00]}
Qf5 {[%emt 0:00:00]} 47. Qe8+ {[%emt 0:00:00]} Kg7 {[%emt 0:00:00]} 48. Nd1 {
[%emt 0:00:00]} g3 {[%emt 0:00:00]} 49. Ne3 {[%emt 0:00:00]} Qf3 {[%emt 0:00:
00]} 50. Qd7+ {[%emt 0:00:00]} Kg6 {[%emt 0:00:00]} 51. Qh3 {[%emt 0:00:47]}
Kh5 {[%emt 0:01:01]} 52. Qd7 {[%emt 0:03:13]} Kg6 {[%emt 0:00:26]} 53. Qe8+ {
[%emt 0:00:40]} Kg7 {[%emt 0:00:26]} 54. Qd7+ {[%emt 0:00:26]} Kg6 {[%emt 0:00:
05]} 55. Qh3 {[%emt 0:00:23]} Kh5 {[%emt 0:00:49]} 56. Qc8 {[%emt 0:01:22]}
Qh1+ {[%emt 0:03:34]} 57. Nd1 {[%emt 0:00:02]} Qe4 {[%emt 0:00:17]} 58. Qxc5+ {
[%emt 0:00:28]} Kg4 {[%emt 0:00:51]} 59. Qc8+ {[%emt 0:00:37]} Kh5 {[%emt 0:00:
44]} 60. Qc5+ {[%emt 0:00:52]} Kg4 {[%emt 0:00:20]} 61. Ne3+ {[%emt 0:00:30]}
Kh3 {[%emt 0:00:33]} 62. Qc8+ {[%emt 0:00:38]} Kh2 {[%emt 0:00:16]} 63. Ng4+ {
[%emt 0:01:04]} Kg2 {[%emt 0:01:05]} 64. Nxf6 {[%emt 0:00:32]} Qf3 {[%emt 0:00:
23]} 65. Qe6 {[%emt 0:00:31]} h3 {[%emt 0:00:45]} 66. Nd5 {[%emt 0:00:10]} Qf1+
{[%emt 0:00:45]} 67. Be1 {[%emt 0:00:22]} Kh1 {[%emt 0:00:26]} 68. Qe4+ {
[%emt 0:00:38]} Qg2 {[%emt 0:00:38]} 69. Nf6 {[%emt 0:00:39]} Qxe4 {[%emt 0:00:
30]} 70. Nxe4 {[%emt 0:00:09]} g2 {[%emt 0:00:03]} 71. Nf2+ {[%emt 0:00:16]}
Kh2 {[%emt 0:00:17]} 72. Nxh3 {[%emt 0:00:07]} Kxh3 {[%emt 0:00:06]} 73. Bf2 {
[%emt 0:00:11]} 1-0

[Event "23rd ETCC Women 2021"]
[Site "Catez"]
[Date "2021.11.16"]
[Round "5.23"]
[White "Gaal, Zsoka"]
[Black "Sucikova, Svetlana"]
[Result "1-0"]
[ECO "B12"]
[WhiteElo "2336"]
[BlackElo "2197"]
[Annotator "NA"]
[PlyCount "101"]
[EventDate "2021.11.08"]
[EventType "team-tourn"]
[EventCountry "SLO"]
[SourceTitle "playchess.com"]
[Source "ChessBase"]
[SourceQuality "1"]
[WhiteTeam "Hungary"]
[BlackTeam "Slovakia"]
[WhiteTeamCountry "HUN"]
[BlackTeamCountry "SVK"]
[TimeControl "40/5400+30:1800+30"]

1. e4 {[%emt 0:00:03]} c6 {[%emt 0:01:46]} 2. d4 {[%emt 0:00:08]} d5 {[%emt 0:
00:56]} 3. e5 {[%emt 0:00:08]} Bf5 {[%emt 0:02:06]} 4. h4 {[%emt 0:00:09]} h5 {
[%emt 0:01:10]} 5. Bd3 {[%emt 0:00:06]} Bxd3 {[%emt 0:02:11]} 6. Qxd3 {[%emt 0:
00:06]} e6 {[%emt 0:01:00]} 7. Nf3 {[%emt 0:00:18]} Ne7 {[%emt 0:03:56]} 8. c4
{[%emt 0:12:03]} Nd7 {[%emt 0:01:32]} 9. Nc3 {[%emt 0:07:23]} dxc4 {[%emt 0:03:
17]} 10. Qxc4 {[%emt 0:00:14]} Nb6 {[%emt 0:01:57]} 11. Qe2 {[%emt 0:12:17]}
Nf5 {[%emt 0:01:38]} 12. Qe4 {[%emt 0:02:37]} Nd5 {[%emt 0:05:29]} 13. O-O {
[%emt 0:06:34]} Qb6 {[%emt 0:04:28]} 14. Bg5 {[%emt 0:11:31]} Be7 {[%emt 0:05:
50]} 15. Bxe7 {[%emt 0:01:05]} Ndxe7 {[%emt 0:03:42]} 16. b3 {[%emt 0:08:39]}
Rd8 {[%emt 0:07:22]} 17. Rfd1 {[%emt 0:01:41]} O-O {[%emt 0:20:31]} 18. Na4 {
[%emt 0:05:13]} Qb4 {[%emt 0:03:17]} 19. Rd3 {[%emt 0:03:44]} Rd5 {[%emt 0:02:
28]} 20. a3 {[%emt 0:03:13]} Qa5 {[%emt 0:00:53]} 21. Nc3 {[%emt 0:03:33]} Rd7
{[%emt 0:01:11]} 22. b4 {[%emt 0:00:12]} Qa6 {[%emt 0:01:17]} 23. Rad1 {
[%emt 0:10:53]} Qxa3 {[%emt 0:04:15]} 24. g4 {[%emt 0:01:42]} hxg4 {[%emt 0:01:
23]} 25. Qxg4 {[%emt 0:00:02]} Qxb4 {[%emt 0:03:28]} 26. Ne4 {[%emt 0:00:37]}
Nd5 {[%emt 0:00:37]} 27. Nfg5 {[%emt 0:02:25]} Qe7 {[%emt 0:01:48]} 28. Qh5 {
[%emt 0:02:38]} Nh6 {[%emt 0:00:11]} 29. Rg3 {[%emt 0:01:00]} Nf4 {[%emt 0:07:
02]} 30. Qf3 {[%emt 0:01:12]} Ng6 {[%emt 0:00:05]} 31. Nf6+ {[%emt 0:02:30]}
Kh8 {[%emt 0:07:19]} 32. Nxd7 {[%emt 0:01:18]} Qxd7 {[%emt 0:00:02]} 33. Qa3 {
[%emt 0:01:02]} Ra8 {[%emt 0:00:33]} 34. Qd3 {[%emt 0:00:35]} Nf5 {[%emt 0:01:
55]} 35. Rg4 {[%emt 0:00:31]} Rd8 {[%emt 0:00:38]} 36. Qe4 {[%emt 0:00:08]} Kg8
{[%emt 0:00:32]} 37. h5 {[%emt 0:00:29]} Nf8 {[%emt 0:00:32]} 38. Qg2 {[%emt 0:
00:38]} c5 {[%emt 0:00:36]} 39. Ne4 {[%emt 0:00:10]} Kh8 {[%emt 0:00:35]} 40.
Nxc5 {[%emt 0:00:28]} Qb5 {[%emt 0:00:23]} 41. Nxb7 {[%emt 0:04:01]} Rd5 {
[%emt 0:05:51]} 42. Nd6 {[%emt 0:08:15]} Nxd6 {[%emt 0:02:47]} 43. exd6 {
[%emt 0:03:33]} Rxh5 {[%emt 0:00:27]} 44. Rxg7 {[%emt 0:03:04]} Ng6 {[%emt 0:
02:12]} 45. d7 {[%emt 0:01:16]} Qa5 {[%emt 0:08:09]} 46. Rxg6 {[%emt 0:00:36]}
fxg6 {[%emt 0:06:27]} 47. Qa8+ {[%emt 0:00:10]} Kh7 {[%emt 0:02:18]} 48. d8=Q {
[%emt 0:00:20]} Rg5+ {[%emt 0:01:42]} 49. Qxg5 {[%emt 0:00:12]} Qxg5+ {[%emt 0:
00:39]} 50. Qg2 {[%emt 0:00:09]} Qf5 {[%emt 0:00:21]} 51. Rc1 {[%emt 0:00:23]}
1-0

[Event "23rd ETCC Women 2021"]
[Site "Catez"]
[Date "2021.11.16"]
[Round "5.24"]
[White "Mrvova, Alena"]
[Black "Mihok-Juhasz, Barbara"]
[Result "0-1"]
[ECO "B31"]
[WhiteElo "2174"]
[BlackElo "2258"]
[Annotator "NA"]
[PlyCount "126"]
[EventDate "2021.11.08"]
[EventType "team-tourn"]
[EventCountry "SLO"]
[SourceTitle "playchess.com"]
[Source "ChessBase"]
[SourceQuality "1"]
[WhiteTeam "Slovakia"]
[BlackTeam "Hungary"]
[WhiteTeamCountry "SVK"]
[BlackTeamCountry "HUN"]
[TimeControl "40/5400+30:1800+30"]

1. e4 {[%emt 0:00:10]} c5 {[%emt 0:00:04]} 2. Nf3 {[%emt 0:00:18]} Nc6 {
[%emt 0:00:05]} 3. Bb5 {[%emt 0:00:31]} g6 {[%emt 0:00:05]} 4. Bxc6 {[%emt 0:
00:17]} bxc6 {[%emt 0:00:03]} 5. d3 {[%emt 0:01:03]} Bg7 {[%emt 0:00:22]} 6.
Nc3 {[%emt 0:00:57]} e5 {[%emt 0:08:04]} 7. Be3 {[%emt 0:04:18]} d6 {[%emt 0:
00:07]} 8. h3 {[%emt 0:00:29]} Nf6 {[%emt 0:03:54]} 9. Qd2 {[%emt 0:02:24]} Rb8
{[%emt 0:01:06]} 10. Rb1 {[%emt 0:01:17]} O-O {[%emt 0:00:21]} 11. O-O {
[%emt 0:00:21]} Ne8 {[%emt 0:18:03]} 12. Bh6 {[%emt 0:07:06]} f5 {[%emt 0:16:
28]} 13. Bxg7 {[%emt 0:08:52]} Nxg7 {[%emt 0:00:17]} 14. Qh6 {[%emt 0:00:52]}
Ne6 {[%emt 0:00:04]} 15. exf5 {[%emt 0:06:12]} gxf5 {[%emt 0:00:20]} 16. Qh4 {
[%emt 0:07:22]} Qe8 {[%emt 0:08:50]} 17. a3 {[%emt 0:04:58]} Rb7 {[%emt 0:05:
38]} 18. Ne2 {[%emt 0:04:46]} Rg7 {[%emt 0:04:55]} 19. Nd2 {[%emt 0:02:39]} Qg6
{[%emt 0:02:24]} 20. g3 {[%emt 0:06:08]} f4 {[%emt 0:06:09]} 21. g4 {[%emt 0:
05:45]} h5 {[%emt 0:03:26]} 22. Kh2 {[%emt 0:04:05]} hxg4 {[%emt 0:00:06]} 23.
Rg1 {[%emt 0:00:06]} Ng5 {[%emt 0:00:18]} 24. Rxg4 {[%emt 0:00:13]} Bxg4 {
[%emt 0:00:06]} 25. Qxg4 {[%emt 0:00:11]} Qh6 {[%emt 0:11:33]} 26. Rg1 {
[%emt 0:09:47]} f3 {[%emt 0:00:22]} 27. Ng3 {[%emt 0:00:04]} Rf4 {[%emt 0:03:
38]} 28. Qc8+ {[%emt 0:03:14]} Kh7 {[%emt 0:00:02]} 29. Nge4 {[%emt 0:03:54]}
d5 {[%emt 0:05:09]} 30. Nxg5+ {[%emt 0:02:10]} Rxg5 {[%emt 0:00:05]} 31. Qd7+ {
[%emt 0:00:32]} Kg6 {[%emt 0:02:23]} 32. Qe8+ {[%emt 0:02:12]} Kh7 {[%emt 0:00:
39]} 33. Qe7+ {[%emt 0:00:22]} Rg7 {[%emt 0:00:07]} 34. Rxg7+ {[%emt 0:00:14]}
Qxg7 {[%emt 0:00:03]} 35. Qxg7+ {[%emt 0:00:08]} Kxg7 {[%emt 0:00:03]} 36. Kg3
{[%emt 0:00:06]} Rf8 {[%emt 0:00:23]} 37. Nxf3 {[%emt 0:00:14]} Kf6 {[%emt 0:
00:05]} 38. Nh2 {[%emt 0:01:53]} Rb8 {[%emt 0:00:50]} 39. Ng4+ {[%emt 0:00:12]}
Ke6 {[%emt 0:00:10]} 40. b3 {[%emt 0:00:15]} c4 {[%emt 0:02:43]} 41. dxc4 {
[%emt 0:36:53]} dxc4 {[%emt 0:01:23]} 42. b4 {[%emt 0:00:00]} c3 {[%emt 0:01:
53]} 43. Ne3 {[%emt 0:00:00]} c5 {[%emt 0:15:16]} 44. bxc5 {[%emt 0:00:00]} Rc8
{[%emt 0:01:13]} 45. Kf3 {[%emt 0:00:00]} Rxc5 {[%emt 0:00:11]} 46. Ke4 {
[%emt 0:00:00]} Ra5 {[%emt 0:01:06]} 47. Nc4 {[%emt 0:00:00]} Ra4 {[%emt 0:00:
11]} 48. Kd3 {[%emt 0:00:00]} Kd5 {[%emt 0:00:08]} 49. Ne3+ {[%emt 0:00:00]}
Kc5 {[%emt 0:00:10]} 50. Ng4 {[%emt 0:00:00]} Kd6 {[%emt 0:00:22]} 51. Ne3 {
[%emt 0:00:00]} Kc5 {[%emt 0:00:35]} 52. Ng4 {[%emt 0:00:00]} Rxa3 {[%emt 0:02:
01]} 53. Nxe5 {[%emt 0:00:00]} Ra1 {[%emt 0:00:07]} 54. Kxc3 {[%emt 0:00:00]}
Ra3+ {[%emt 0:00:07]} 55. Kb2 {[%emt 0:00:00]} Rxh3 {[%emt 0:00:04]} 56. Nd3+ {
[%emt 0:00:00]} Kd4 {[%emt 0:00:14]} 57. Nb4 {[%emt 0:00:00]} Kc4 {[%emt 0:00:
58]} 58. Nc6 {[%emt 0:00:00]} Rh5 {[%emt 0:03:31]} 59. f4 {[%emt 0:00:00]} Rb5+
{[%emt 0:02:05]} 60. Kc1 {[%emt 0:00:00]} Kc3 {[%emt 0:00:07]} 61. Kd1 {
[%emt 0:00:00]} a5 {[%emt 0:00:14]} 62. Ne7 {[%emt 0:00:00]} a4 {[%emt 0:01:17]
} 63. f5 {[%emt 0:00:00]} a3 {[%emt 0:00:14]} 0-1

[Event "23rd ETCC Women 2021"]
[Site "Catez"]
[Date "2021.11.17"]
[Round "5.25"]
[White "Vega Gutierrez, Sabrina"]
[Black "Paehtz, Elisabeth"]
[Result "1/2-1/2"]
[ECO "B82"]
[WhiteElo "2394"]
[BlackElo "2485"]
[Annotator "ChessBase"]
[PlyCount "64"]
[EventDate "2021.11.08"]
[EventType "team-tourn"]
[EventCountry "SLO"]
[SourceTitle "playchess.com"]
[Source "ChessBase"]
[SourceQuality "1"]
[WhiteTeam "Spain"]
[BlackTeam "Germany"]
[WhiteTeamCountry "ESP"]
[BlackTeamCountry "GER"]
[TimeControl "40/5400+30:1800+30"]

1. e4 {[%emt 0:00:05]} c5 {[%emt 0:00:03]} 2. Nf3 {[%emt 0:00:05]} e6 {[%emt 0:
00:02]} 3. d4 {[%emt 0:00:15]} cxd4 {[%emt 0:00:03]} 4. Nxd4 {[%emt 0:00:07]}
a6 {[%emt 0:00:02]} 5. Bd3 {[%emt 0:02:14]} Nf6 {[%emt 0:01:23]} 6. Nc3 {
[%emt 0:03:03]} d6 {[%emt 0:01:04]} 7. f4 {[%emt 0:02:17]} Nbd7 {[%emt 0:00:30]
} 8. Qf3 {[%emt 0:00:46]} Nc5 {[%emt 0:01:51]} 9. g4 {[%emt 0:14:44]} e5 {
[%emt 0:00:09]} 10. Nf5 {[%emt 0:08:23]} g6 {[%emt 0:00:33]} 11. fxe5 {[%emt 0:
14:34]} dxe5 {[%emt 0:04:23]} 12. Ne3 {[%emt 0:01:38]} Bg7 {[%emt 0:02:00]} 13.
g5 {[%emt 0:19:04]} Nh5 {[%emt 0:03:30]} 14. Ned5 {[%emt 0:03:45]} Ne6 {
[%emt 0:08:47]} 15. Rf1 {[%emt 0:08:50]} Nhf4 {[%emt 0:17:44]} 16. Be3 {
[%emt 0:02:24]} Nxg5 {[%emt 0:08:11]} 17. Qg3 {[%emt 0:01:02]} Nge6 {[%emt 0:
08:13]} 18. O-O-O {[%emt 0:00:15]} O-O {[%emt 0:04:47]} 19. Bb6 {[%emt 0:10:53]
} Qe8 {[%emt 0:01:30]} 20. Kb1 {[%emt 0:00:23]} Kh8 {[%emt 0:06:15]} 21. Ne2 {
[%emt 0:00:41]} Nxd3 {[%emt 0:04:51]} 22. Rxd3 {[%emt 0:00:30]} f5 {[%emt 0:00:
17]} 23. exf5 {[%emt 0:02:06]} gxf5 {[%emt 0:00:03]} 24. Qh4 {[%emt 0:00:19]}
Rf7 {[%emt 0:10:53]} 25. Nc7 {[%emt 0:01:51]} Nxc7 {[%emt 0:04:59]} 26. Rd8 {
[%emt 0:00:26]} Be6 {[%emt 0:00:11]} 27. Rxe8+ {[%emt 0:00:21]} Nxe8 {[%emt 0:
00:09]} 28. Ng3 {[%emt 0:01:57]} Bf6 {[%emt 0:03:47]} 29. Qh6 {[%emt 0:01:16]}
Ng7 {[%emt 0:01:20]} 30. Rd1 {[%emt 0:00:07]} Re8 {[%emt 0:01:29]} 31. a4 {
[%emt 0:01:03]} e4 {[%emt 0:02:14]} 32. Rf1 {[%emt 0:00:30]} Be5 {[%emt 0:00:
59]} 1/2-1/2

[Event "23rd ETCC Women 2021"]
[Site "Catez"]
[Date "2021.11.17"]
[Round "5.26"]
[White "Heinemann, Josefine"]
[Black "Matnadze, Ana"]
[Result "1/2-1/2"]
[ECO "B15"]
[WhiteElo "2336"]
[BlackElo "2418"]
[Annotator "ChessBase"]
[PlyCount "162"]
[EventDate "2021.11.08"]
[EventType "team-tourn"]
[EventCountry "SLO"]
[SourceTitle "playchess.com"]
[Source "ChessBase"]
[SourceQuality "1"]
[WhiteTeam "Germany"]
[BlackTeam "Spain"]
[WhiteTeamCountry "GER"]
[BlackTeamCountry "ESP"]
[TimeControl "40/5400+30:1800+30"]

1. e4 {[%emt 0:00:03]} c6 {[%emt 0:00:06]} 2. d4 {[%emt 0:00:07]} d5 {[%emt 0:
00:07]} 3. Nd2 {[%emt 0:00:05]} dxe4 {[%emt 0:00:08]} 4. Nxe4 {[%emt 0:00:04]}
Nf6 {[%emt 0:00:04]} 5. Nxf6+ {[%emt 0:00:09]} exf6 {[%emt 0:00:06]} 6. Be3 {
[%emt 0:00:13]} Bd6 {[%emt 0:00:17]} 7. Bd3 {[%emt 0:00:28]} O-O {[%emt 0:00:
27]} 8. Ne2 {[%emt 0:00:42]} Re8 {[%emt 0:00:37]} 9. O-O {[%emt 0:03:26]} Nd7 {
[%emt 0:03:36]} 10. c4 {[%emt 0:03:00]} Nf8 {[%emt 0:00:30]} 11. Ng3 {[%emt 0:
01:50]} Qc7 {[%emt 0:01:37]} 12. Qe2 {[%emt 0:03:34]} Bd7 {[%emt 0:02:40]} 13.
Rfe1 {[%emt 0:07:40]} Ng6 {[%emt 0:06:02]} 14. Qh5 {[%emt 0:07:52]} Rad8 {
[%emt 0:09:20]} 15. Nf5 {[%emt 0:12:59]} Bxf5 {[%emt 0:08:21]} 16. Bxf5 {
[%emt 0:01:35]} Bf4 {[%emt 0:00:49]} 17. g3 {[%emt 0:12:32]} Bxe3 {[%emt 0:00:
24]} 18. Rxe3 {[%emt 0:00:21]} Rxe3 {[%emt 0:11:56]} 19. fxe3 {[%emt 0:00:07]}
Qe7 {[%emt 0:01:42]} 20. Qf3 {[%emt 0:02:39]} Qb4 {[%emt 0:01:17]} 21. b3 {
[%emt 0:02:31]} a5 {[%emt 0:02:25]} 22. Rd1 {[%emt 0:04:45]} a4 {[%emt 0:02:00]
} 23. Bc2 {[%emt 0:04:26]} Qc3 {[%emt 0:04:17]} 24. Qf2 {[%emt 0:01:55]} Re8 {
[%emt 0:01:16]} 25. Rd3 {[%emt 0:03:02]} Qa1+ {[%emt 0:01:58]} 26. Bd1 {
[%emt 0:05:35]} axb3 {[%emt 0:02:39]} 27. axb3 {[%emt 0:02:04]} Ra8 {[%emt 0:
05:34]} 28. Kg2 {[%emt 0:03:05]} Ra2 {[%emt 0:00:58]} 29. Rd2 {[%emt 0:00:18]}
Ra8 {[%emt 0:01:40]} 30. Rd3 {[%emt 0:00:20]} Nf8 {[%emt 0:04:16]} 31. h4 {
[%emt 0:01:50]} g6 {[%emt 0:03:16]} 32. Rd2 {[%emt 0:02:08]} f5 {[%emt 0:01:12]
} 33. Qf1 {[%emt 0:03:43]} Nd7 {[%emt 0:01:27]} 34. Bf3 {[%emt 0:01:14]} Qc3 {
[%emt 0:00:55]} 35. Qd3 {[%emt 0:01:21]} Qb4 {[%emt 0:00:12]} 36. Rb2 {[%emt 0:
01:41]} Ra3 {[%emt 0:02:01]} 37. Kf2 {[%emt 0:01:36]} Nf6 {[%emt 0:00:33]} 38.
c5 {[%emt 0:03:19]} Ra1 {[%emt 0:03:00]} 39. Qd2 {[%emt 0:01:04]} Qxd2+ {
[%emt 0:02:33]} 40. Rxd2 {[%emt 0:00:04]} Rb1 {[%emt 0:00:07]} 41. d5 {[%emt 0:
34:27]} cxd5 {[%emt 0:32:00]} 42. Bxd5 {[%emt 0:00:00]} Nxd5 {[%emt 0:00:00]}
43. Rxd5 {[%emt 0:00:00]} Rxb3 {[%emt 0:00:00]} 44. Rd7 {[%emt 0:00:00]} Rb2+ {
[%emt 0:00:00]} 45. Kf3 {[%emt 0:00:00]} Kg7 {[%emt 0:00:00]} 46. Rc7 {[%emt 0:
00:00]} Kf6 {[%emt 0:00:00]} 47. c6 {[%emt 0:00:00]} bxc6 {[%emt 0:00:00]} 48.
Rxc6+ {[%emt 0:00:00]} Ke5 {[%emt 0:00:00]} 49. Rc5+ {[%emt 0:00:00]} Kd6 {
[%emt 0:00:00]} 50. Ra5 {[%emt 0:00:00]} Rd2 {[%emt 0:00:00]} 51. Ra7 {[%emt 0:
00:00]} Ke6 {[%emt 0:00:00]} 52. Ra3 {[%emt 0:00:00]} h6 {[%emt 0:00:00]} 53.
e4 {[%emt 0:00:00]} fxe4+ {[%emt 0:00:00]} 54. Kxe4 {[%emt 0:00:00]} Rf2 {
[%emt 0:00:00]} 55. Ra6+ {[%emt 0:00:00]} Ke7 {[%emt 0:00:00]} 56. h5 {[%emt 0:
00:00]} Rf6 {[%emt 0:00:00]} 57. Ra7+ {[%emt 0:00:00]} Kf8 {[%emt 0:00:00]} 58.
hxg6 {[%emt 0:00:00]} fxg6 {[%emt 0:00:00]} 59. Rb7 {[%emt 0:00:00]} Rf7 {
[%emt 0:00:00]} 60. Rb6 {[%emt 0:00:00]} Kg7 {[%emt 0:00:00]} 61. Ke3 {[%emt 0:
00:00]} Rf5 {[%emt 0:00:00]} 62. Ra6 {[%emt 0:00:00]} h5 {[%emt 0:00:00]} 63.
g4 {[%emt 0:00:00]} hxg4 {[%emt 0:00:00]} 64. Ra4 {[%emt 0:00:00]} Kh6 {
[%emt 0:00:00]} 65. Rxg4 {[%emt 0:00:00]} Kh5 {[%emt 0:00:00]} 66. Rg1 {
[%emt 0:00:00]} g5 {[%emt 0:00:00]} 67. Ke4 {[%emt 0:02:15]} Rf4+ {[%emt 0:00:
00]} 68. Ke3 {[%emt 0:00:04]} Rf8 {[%emt 0:00:00]} 69. Rh1+ {[%emt 0:00:14]}
Kg6 {[%emt 0:00:00]} 70. Rh2 {[%emt 0:00:35]} Rf4 {[%emt 0:01:46]} 71. Rf2 {
[%emt 0:00:19]} Rg4 {[%emt 0:00:50]} 72. Kf3 {[%emt 0:00:16]} Kh5 {[%emt 0:02:
01]} 73. Rh2+ {[%emt 0:00:17]} Rh4 {[%emt 0:00:06]} 74. Ra2 {[%emt 0:00:03]}
Rc4 {[%emt 0:00:34]} 75. Kg2 {[%emt 0:00:27]} Kg4 {[%emt 0:00:21]} 76. Rb2 {
[%emt 0:00:14]} Kf4 {[%emt 0:00:19]} 77. Ra2 {[%emt 0:00:17]} g4 {[%emt 0:00:
04]} 78. Rb2 {[%emt 0:00:09]} g3 {[%emt 0:00:18]} 79. Ra2 {[%emt 0:00:07]} Kg4
{[%emt 0:00:11]} 80. Rb2 {[%emt 0:00:36]} Rf4 {[%emt 0:00:05]} 81. Ra2 {
[%emt 0:00:07]} Re4 {[%emt 0:00:49]} 1/2-1/2

[Event "23rd ETCC Women 2021"]
[Site "Catez"]
[Date "2021.11.17"]
[Round "5.27"]
[White "Eizaguerri Floris, Maria"]
[Black "Klek, Hanna Marie"]
[Result "1/2-1/2"]
[ECO "C84"]
[WhiteElo "2328"]
[BlackElo "2343"]
[Annotator "ChessBase"]
[PlyCount "83"]
[EventDate "2021.11.08"]
[EventType "team-tourn"]
[EventCountry "SLO"]
[SourceTitle "playchess.com"]
[Source "ChessBase"]
[SourceQuality "1"]
[WhiteTeam "Spain"]
[BlackTeam "Germany"]
[WhiteTeamCountry "ESP"]
[BlackTeamCountry "GER"]
[TimeControl "40/5400+30:1800+30"]

1. e4 {[%emt 0:00:02]} e5 {[%emt 0:00:05]} 2. Nf3 {[%emt 0:00:04]} Nc6 {
[%emt 0:00:05]} 3. Bb5 {[%emt 0:00:09]} a6 {[%emt 0:00:05]} 4. Ba4 {[%emt 0:00:
04]} Nf6 {[%emt 0:00:04]} 5. O-O {[%emt 0:00:06]} Be7 {[%emt 0:00:05]} 6. d3 {
[%emt 0:00:14]} b5 {[%emt 0:00:17]} 7. Bb3 {[%emt 0:00:05]} d6 {[%emt 0:00:05]}
8. a3 {[%emt 0:00:10]} Na5 {[%emt 0:00:42]} 9. Ba2 {[%emt 0:00:06]} c5 {
[%emt 0:00:09]} 10. Nc3 {[%emt 0:01:07]} Be6 {[%emt 0:00:08]} 11. Bg5 {[%emt 0:
03:08]} Nc6 {[%emt 0:04:49]} 12. Bxf6 {[%emt 0:02:21]} Bxf6 {[%emt 0:00:07]}
13. Nd5 {[%emt 0:00:09]} Rc8 {[%emt 0:09:46]} 14. a4 {[%emt 0:10:45]} Bg5 {
[%emt 0:06:48]} 15. c3 {[%emt 0:11:32]} Bh6 {[%emt 0:02:27]} 16. axb5 {[%emt 0:
08:53]} axb5 {[%emt 0:00:06]} 17. Bb3 {[%emt 0:00:40]} O-O {[%emt 0:00:37]} 18.
Qe2 {[%emt 0:05:16]} Kh8 {[%emt 0:01:55]} 19. Ra6 {[%emt 0:07:34]} f5 {[%emt 0:
01:42]} 20. exf5 {[%emt 0:05:38]} Bxf5 {[%emt 0:02:10]} 21. Ne3 {[%emt 0:03:04]
} Bg6 {[%emt 0:07:41]} 22. Be6 {[%emt 0:03:11]} Bxe3 {[%emt 0:17:22]} 23. fxe3
{[%emt 0:02:14]} Rc7 {[%emt 0:00:38]} 24. Nh4 {[%emt 0:06:11]} Bf7 {[%emt 0:10:
47]} 25. Qg4 {[%emt 0:13:25]} Bxe6 {[%emt 0:03:38]} 26. Rxf8+ {[%emt 0:00:05]}
Qxf8 {[%emt 0:00:06]} 27. Qxe6 {[%emt 0:00:02]} g6 {[%emt 0:06:40]} 28. Nf3 {
[%emt 0:04:11]} c4 {[%emt 0:04:30]} 29. dxc4 {[%emt 0:02:22]} bxc4 {[%emt 0:00:
20]} 30. Qxc4 {[%emt 0:01:23]} Qc8 {[%emt 0:02:17]} 31. Qa2 {[%emt 0:02:09]}
Qf5 {[%emt 0:08:04]} 32. Ra8+ {[%emt 0:02:48]} Kg7 {[%emt 0:00:05]} 33. h3 {
[%emt 0:06:03]} Rf7 {[%emt 0:01:35]} 34. e4 {[%emt 0:00:22]} Qf4 {[%emt 0:00:
30]} 35. Qb1 {[%emt 0:00:51]} Qe3+ {[%emt 0:02:40]} 36. Kh2 {[%emt 0:00:17]}
Rxf3 {[%emt 0:00:33]} 37. gxf3 {[%emt 0:00:10]} Qf2+ {[%emt 0:00:05]} 38. Kh1 {
[%emt 0:00:03]} Qxf3+ {[%emt 0:00:05]} 39. Kh2 {[%emt 0:00:32]} Qf2+ {[%emt 0:
00:08]} 40. Kh1 {[%emt 0:00:04]} Qf3+ {[%emt 0:00:04]} 41. Kh2 {[%emt 0:32:06]}
Qf2+ {[%emt 0:30:11]} 42. Kh1 {[%emt 0:00:22]} 1/2-1/2